Workbook

Sheet Sheet1
A2: Title: Sodium lignosulfonate improves shoot growth of Oryza sativa via enhancement of photosynthetic activity and reduction of stress response
A4: Andrew De-Xian Kok, Ngai-Paing Tan, Wan Muhamad Asrul Nizam Wan Abdullah, Chu-Nie Tang, Lee-Yoon Low, Mohd Hafis Yuswan, Janna Ong-Abdullah & Kok-Song Lai

Sheet Total Protein
A1: Identified Proteins from Control | J1: Identified Proteins from Treated | T1: Proteins Exclusive Control | AC1: Proteins Exclusive to Treated | AN1: Total Protein | AO1: Exclusive Protein
A2: Q6Z965 | B2: 12-oxophytodienoate reductase 7 | J2: A2XCT8 | K2: 1,2-dihydroxy-3-keto-5-methylthiopentene dioxygenase 2 | T2: Q6Z7V2 | U2: 24.1 kDa heat shock protein, mitochondrial | AC2: A2XCT8 | AD2: 1,2-dihydroxy-3-keto-5-methylthiopentene dioxygenase 2
A3: Q84J55 | B3: 14-3-3-like protein GF14-A | J3: Q6Z965 | K3: 12-oxophytodienoate reductase 7 | T3: Q5N8G1 | U3: 2-C-methyl-D-erythritol 4-phosphate cytidylyltransferase, chloroplastic | AC3: P46465 | AD3: 26S proteasome regulatory subunit 6A homolog
A4: Q7XTE8 | B4: 14-3-3-like protein GF14-B | J4: Q84J55 | K4: 14-3-3-like protein GF14-A | T4: P0C469 | U4: 30S ribosomal protein S15, chloroplastic | AC4: Q2QWT4 | AD4: 3'(2'),5'-bisphosphate nucleotidase
A5: Q6ZKC0 | B5: 14-3-3-like protein GF14-C | J5: Q7XTE8 | K5: 14-3-3-like protein GF14-B | T5: Q9ZST1 | U5: 30S ribosomal protein S17, chloroplastic | AC5: P0C464 | AD5: 30S ribosomal protein S11, chloroplastic
A6: Q2R2W2 | B6: 14-3-3-like protein GF14-D | J6: Q6ZKC0 | K6: 14-3-3-like protein GF14-C | T6: P0C476 | U6: 30S ribosomal protein S18, chloroplastic | AC6: Q6AVG6 | AD6: 4-hydroxy-3-methylbut-2-enyl diphosphate reductase, chloroplastic
A7: Q6EUP4 | B7: 14-3-3-like protein GF14-E | J7: Q2R2W2 | K7: 14-3-3-like protein GF14-D | T7: Q69UI2 | U7: 40S ribosomal protein S13-1 | AC7: A2ZCQ7 | AD7: 60S ribosomal protein L10-1
A8: Q06967 | B8: 14-3-3-like protein GF14-F | J8: Q6EUP4 | K8: 14-3-3-like protein GF14-E | T8: Q8S2G0 | U8: 4-diphosphocytidyl-2-C-methyl-D-erythritol kinase, chloroplastic | AC8: P31691 | AD8: ADP,ATP carrier protein, mitochondrial
A9: Q6Z7V2 | B9: 24.1 kDa heat shock protein, mitochondrial | J9: Q06967 | K9: 14-3-3-like protein GF14-F | T9: P56724 | U9: 60S acidic ribosomal protein P3 | AC9: P0C519 | AD9: ATP synthase subunit 9, mitochondrial
A10: Q8W425 | B10: 26S proteasome non-ATPase regulatory subunit 6 | J10: Q8W425 | K10: 26S proteasome non-ATPase regulatory subunit 6 | T10: A2XNS1 | U10: Actin-3 | AC10: Q5Z974 | AD10: ATP-dependent zinc metalloprotease FTSH 1, chloroplastic
A11: P46466 | B11: 26S proteasome regulatory subunit 4 homolog | J11: P46466 | K11: 26S proteasome regulatory subunit 4 homolog | T11: P0C542 | U11: Actin-7 | AC11: Q655S1 | AD11: ATP-dependent zinc metalloprotease FTSH 2, chloroplastic
A12: P0DKK0 | B12: 26S proteasome regulatory subunit 7B | J12: P46465 | K12: 26S proteasome regulatory subunit 6A homolog | T12: Q9LD61 | U12: Aspartate carbamoyltransferase, chloroplastic | AC12: Q0JNS6 | AD12: Calmodulin-1
A13: Q5N8G1 | B13: 2-C-methyl-D-erythritol 4-phosphate cytidylyltransferase, chloroplastic | J13: P0DKK0 | K13: 26S proteasome regulatory subunit 7B | T13: P0C314 | U13: ATP-dependent Clp protease proteolytic subunit | AC13: Q6F332 | AD13: Calmodulin-2
A14: Q6ER94 | B14: 2-Cys peroxiredoxin BAS1, chloroplastic | J14: Q6ER94 | K14: 2-Cys peroxiredoxin BAS1, chloroplastic | T14: Q7XKV2 | U14: Beta-glucosidase 13 | AC14: Q6YV23 | AD14: Carbamoyl-phosphate synthase small chain, chloroplastic
A15: Q0JMH0 | B15: 2-hydroxyacyl-CoA lyase | J15: Q0JMH0 | K15: 2-hydroxyacyl-CoA lyase | T15: Q2QX45 | U15: Calcium-dependent protein kinase 28 | AC15: P12330 | AD15: Chlorophyll a-b binding protein 1, chloroplastic
A16: P0C469 | B16: 30S ribosomal protein S15, chloroplastic | J16: Q2QWT4 | K16: 3'(2'),5'-bisphosphate nucleotidase | T16: Q0DJA0 | U16: Coatomer subunit delta-1 | AC16: P12331 | AD16: Chlorophyll a-b binding protein 2, chloroplastic
A17: Q9ZST1 | B17: 30S ribosomal protein S17, chloroplastic | J17: P0C464 | K17: 30S ribosomal protein S11, chloroplastic | T17: Q8W4M7 | U17: DNA repair helicase XPD | AC17: Q7XKE9 | AD17: Clathrin light chain 1
A18: P0C476 | B18: 30S ribosomal protein S18, chloroplastic | J18: P12153 | K18: 30S ribosomal protein S19, chloroplastic | T18: A2XNR6 | U18: Electron transfer flavoprotein subunit alpha, mitochondrial | AC18: Q6H8D5 | AD18: Coatomer subunit beta'-2
A19: P12153 | B19: 30S ribosomal protein S19, chloroplastic | J19: P0C482 | K19: 30S ribosomal protein S2, chloroplastic | T19: Q6K471 | U19: Ferredoxin-thioredoxin reductase catalytic chain, chloroplastic | AC19: Q6Z382 | AD19: Coatomer subunit gamma-2
A20: P0C482 | B20: 30S ribosomal protein S2, chloroplastic | J20: P0C484 | K20: 30S ribosomal protein S3, chloroplastic | T20: Q6I544 | U20: Germin-like protein 5-1 | AC20: P49100 | AD20: Cytochrome b5
A21: P0C484 | B21: 30S ribosomal protein S3, chloroplastic | J21: P0C487 | K21: 30S ribosomal protein S4, chloroplastic | T21: Q0JKD0 | U21: Glutamate synthase 1 [NADH], chloroplastic | AC21: P0C368 | AD21: Cytochrome b559 subunit alpha
A22: P0C487 | B22: 30S ribosomal protein S4, chloroplastic | J22: P0C490 | K22: 30S ribosomal protein S7, chloroplastic | T22: A2ZCP0 | U22: Methylthioribose-1-phosphate isomerase | AC22: P0C315 | AD22: Cytochrome b6
A23: P0C490 | B23: 30S ribosomal protein S7, chloroplastic | J23: P0C493 | K23: 30S ribosomal protein S8, chloroplastic | T23: A2X0R4 | U23: Molybdopterin synthase catalytic subunit | AC23: O04226 | AD23: Delta-1-pyrroline-5-carboxylate synthase 1
A24: P0C493 | B24: 30S ribosomal protein S8, chloroplastic | J24: P0DKK8 | K24: 40S ribosomal protein S10-1 | T24: Q6Z1J6 | U24: Obg-like ATPase 1 | AC24: Q6ZLK0 | AD24: Dolichyl-diphosphooligosaccharide--protein glycosyltransferase 48 kDa subunit
A25: P0DKK8 | B25: 40S ribosomal protein S10-1 | J25: Q69UI1 | K25: 40S ribosomal protein S13-2 | T25: Q7XUP7 | U25: Peptide methionine sulfoxide reductase A2-1 | AC25: Q84PB3 | AD25: Eukaryotic translation initiation factor isoform 4G-1
A26: Q69UI2 | B26: 40S ribosomal protein S13-1 | J26: P31674 | K26: 40S ribosomal protein S15 | T26: Q84VG0 | U26: Probable calcium-binding protein CML7 | AC26: Q688T8 | AD26: Glucose-1-phosphate adenylyltransferase large subunit 3, chloroplastic/amyloplastic
A27: Q69UI1 | B27: 40S ribosomal protein S13-2 | J27: A2ZB00 | K27: 40S ribosomal protein S16 | T27: Q10MJ1 | U27: Probable glutamyl endopeptidase, chloroplastic | AC27: A2ZF53 | AD27: Glutamyl-tRNA(Gln) amidotransferase subunit B, chloroplastic/mitochondrial
A28: P31674 | B28: 40S ribosomal protein S15 | J28: P40978 | K28: 40S ribosomal protein S19 | T28: Q6ZL42 | U28: Probable histone H2A.2 | AC28: Q84TA3 | AD28: Leukotriene A-4 hydrolase homolog
A29: A2ZB00 | B29: 40S ribosomal protein S16 | J29: P35686 | K29: 40S ribosomal protein S20 | T29: P49030 | U29: Protein mago nashi homolog 2 | AC29: Q2QMG2 | AD29: Methylcrotonoyl-CoA carboxylase subunit alpha, mitochondrial
A30: P40978 | B30: 40S ribosomal protein S19 | J30: P35687 | K30: 40S ribosomal protein S21 | T30: B9FSC8 | U30: Putative 12-oxophytodienoate reductase 11 | AC30: Q9XGX7 | AD30: Mitochondrial import inner membrane translocase subunit Tim9
A31: P35686 | B31: 40S ribosomal protein S20 | J31: P49216 | K31: 40S ribosomal protein S26 | T31: P37890 | U31: Serine carboxypeptidase 1 | AC31: Q6K548 | AD31: Mitochondrial outer membrane protein porin 1
A32: P35687 | B32: 40S ribosomal protein S21 | J32: P49397 | K32: 40S ribosomal protein S3a | T32: Q7XKA8 | U32: Serine/threonine-protein kinase SAPK5 | AC32: Q6L5I5 | AD32: Mitochondrial outer membrane protein porin 2
A33: P49216 | B33: 40S ribosomal protein S26 | J33: P49398 | K33: 40S ribosomal protein S4 | T33: P55857 | U33: Small ubiquitin-related modifier 1 | AC33: Q84P97 | AD33: Mitochondrial outer membrane protein porin 5
A34: P49397 | B34: 40S ribosomal protein S3a | J34: Q8LJU5 | K34: 40S ribosomal protein S7 | T34: Q7X8R5 | U34: Thioredoxin M2, chloroplastic | AC34: Q5J4W4 | AD34: Mitogen-activated protein kinase 2
A35: P49398 | B35: 40S ribosomal protein S4 | J35: P49199 | K35: 40S ribosomal protein S8 | T35: Q7XKD0 | U35: Thioredoxin X, chloroplastic | AC35: Q35322 | AD35: NADH dehydrogenase [ubiquinone] iron-sulfur protein 3
A36: Q8LJU5 | B36: 40S ribosomal protein S7 | J36: Q69Q02 | K36: 4-alpha-glucanotransferase DPE2 | T36: Q0J9V5 | U36: Thioredoxin-like protein CXXS1 | AC36: O65091 | AD36: Non-specific lipid-transfer protein 4
A37: P49199 | B37: 40S ribosomal protein S8 | J37: Q6K8J4 | K37: 4-hydroxy-3-methylbut-2-en-1-yl diphosphate synthase (ferredoxin), chloroplastic | T37: Q7F8T6 | U37: Tricin synthase 2 | AC37: O04986 | AD37: Non-symbiotic hemoglobin 1
A38: Q69Q02 | B38: 4-alpha-glucanotransferase DPE2 | J38: Q6AVG6 | K38: 4-hydroxy-3-methylbut-2-enyl diphosphate reductase, chloroplastic | T38: Q6H468 | U38: Two-component response regulator ORR11 | AC38: O04985 | AD38: Non-symbiotic hemoglobin 2
A39: Q8S2G0 | B39: 4-diphosphocytidyl-2-C-methyl-D-erythritol kinase, chloroplastic | J39: O22386 | K39: 50S ribosomal protein L12, chloroplastic | T39: B8AM21 | U39: U2 small nuclear ribonucleoprotein B'' | AC39: Q336R9 | AD39: Peptide methionine sulfoxide reductase A4, chloroplastic
A40: Q6K8J4 | B40: 4-hydroxy-3-methylbut-2-en-1-yl diphosphate synthase (ferredoxin), chloroplastic | J40: P0C438 | K40: 50S ribosomal protein L14, chloroplastic | T40: Q9ARZ9 | U40: Ubiquitin-40S ribosomal protein S27a-1 | AC40: Q0DG05 | AD40: Photosystem I reaction center subunit VI, chloroplastic
A41: O22386 | B41: 50S ribosomal protein L12, chloroplastic | J41: P0C441 | K41: 50S ribosomal protein L16, chloroplastic | T41: Q6Z4G3 | U41: UDP-arabinopyranose mutase 3 | AC41: Q7XPY2 | AD41: Plasma membrane ATPase
A42: P0C438 | B42: 50S ribosomal protein L14, chloroplastic | J42: Q8SAY0 | K42: 50S ribosomal protein L18, chloroplastic | T42: Q0J716 | U42: Villin-5 | AC42: Q7XSQ9 | AD42: Probable aquaporin PIP1-2
A43: P0C441 | B43: 50S ribosomal protein L16, chloroplastic | J43: P0C495 | K43: 50S ribosomal protein L2, chloroplastic | AC43: Q7XLR1 | AD43: Probable aquaporin PIP2-6
A44: Q8SAY0 | B44: 50S ribosomal protein L18, chloroplastic | J44: P12139 | K44: 50S ribosomal protein L20, chloroplastic | AC44: Q8H7Y8 | AD44: Probable histone H2A variant 1
A45: P0C495 | B45: 50S ribosomal protein L2, chloroplastic | J45: P0C445 | K45: 50S ribosomal protein L22, chloroplastic | AC45: Q69SV0 | AD45: Probable L-ascorbate peroxidase 8, chloroplastic
A46: P12139 | B46: 50S ribosomal protein L20, chloroplastic | J46: P0C449 | K46: 50S ribosomal protein L23, chloroplastic | AC46: Q8S0J7 | AD46: Probable membrane-associated 30 kDa protein, chloroplastic
A47: P0C445 | B47: 50S ribosomal protein L22, chloroplastic | J47: O65037 | K47: 50S ribosomal protein L27, chloroplastic | AC47: Q9ZTS1 | AD47: Probable methionine--tRNA ligase
A48: P0C449 | B48: 50S ribosomal protein L23, chloroplastic | J48: P0C454 | K48: 50S ribosomal protein L32, chloroplastic | AC48: Q6K439 | AD48: Probable plastid-lipid-associated protein 2, chloroplastic
A49: O65037 | B49: 50S ribosomal protein L27, chloroplastic | J49: P0C457 | K49: 50S ribosomal protein L33, chloroplastic | AC49: Q7XBW5 | AD49: Probable plastid-lipid-associated protein 3, chloroplastic
A50: P0C454 | B50: 50S ribosomal protein L32, chloroplastic | J50: Q9ZST0 | K50: 50S ribosomal protein L5, chloroplastic | AC50: Q53JI9 | AD50: Probable sucrose-phosphate synthase 5
A51: P0C457 | B51: 50S ribosomal protein L33, chloroplastic | J51: Q2QLY5 | K51: 5-methyltetrahydropteroyltriglutamate--homocysteine methyltransferase 1 | AC51: Q5NBT9 | AD51: Protein TPR1
A52: Q9ZST0 | B52: 50S ribosomal protein L5, chloroplastic | J52: Q2QLY4 | K52: 5-methyltetrahydropteroyltriglutamate--homocysteine methyltransferase 2 | AC52: Q10G39 | AD52: Pyruvate dehydrogenase E1 component subunit beta-4, chloroplastic
A53: Q2QLY5 | B53: 5-methyltetrahydropteroyltriglutamate--homocysteine methyltransferase 1 | J53: P41095 | K53: 60S acidic ribosomal protein P0 | AC53: P40393 | AD53: Ras-related protein RIC2
A54: Q2QLY4 | B54: 5-methyltetrahydropteroyltriglutamate--homocysteine methyltransferase 2 | J54: A2ZCQ7 | K54: 60S ribosomal protein L10-1 | AC54: Q6Z4N6 | AD54: Ricin B-like lectin R40G2
A55: P41095 | B55: 60S acidic ribosomal protein P0 | J55: A2Y0T4 | K55: 60S ribosomal protein L10-2 | AC55: Q10LP5 | AD55: Sucrose synthase 4
A56: P56724 | B56: 60S acidic ribosomal protein P3 | J56: B7F845 | K56: 60S ribosomal protein L10a | AC56: P28752 | AD56: Tubulin alpha-1 chain
A57: A2Y0T4 | B57: 60S ribosomal protein L10-2 | J57: A2YDY2 | K57: 60S ribosomal protein L11 | AC57: Q43594 | AD57: Tubulin beta-1 chain
A58: B7F845 | B58: 60S ribosomal protein L10a | J58: Q943F3 | K58: 60S ribosomal protein L18a | AC58: Q40665 | AD58: Tubulin beta-3 chain
A59: A2YDY2 | B59: 60S ribosomal protein L11 | J59: P35684 | K59: 60S ribosomal protein L3 | AC59: P51431 | AD59: Ubiquitin-40S ribosomal protein S27a-2
A60: Q943F3 | B60: 60S ribosomal protein L18a | J60: Q9SDG6 | K60: 60S ribosomal protein L30 | AC60: Q6ATY4 | AD60: UPF0603 protein Os05g0401100, chloroplastic
A61: P35684 | B61: 60S ribosomal protein L3 | J61: P0DKK2 | K61: 60S ribosomal protein L37a-2 | AC61: Q76BW5 | AD61: Xyloglucan endotransglycosylase/hydrolase protein 8
A62: Q9SDG6 | B62: 60S ribosomal protein L30 | J62: A2WXX3 | K62: 60S ribosomal protein L5-1
A63: P0DKK2 | B63: 60S ribosomal protein L37a-2 | J63: Q8L4L4 | K63: 60S ribosomal protein L5-2
A64: A2WXX3 | B64: 60S ribosomal protein L5-1 | J64: P0DKK7 | K64: 60S ribosomal protein L7a-2
A65: Q8L4L4 | B65: 60S ribosomal protein L5-2 | J65: P49210 | K65: 60S ribosomal protein L9
A66: P0DKK7 | B66: 60S ribosomal protein L7a-2 | J66: Q9LI00 | K66: 6-phosphogluconate dehydrogenase, decarboxylating 1
A67: P49210 | B67: 60S ribosomal protein L9 | J67: Q2R480 | K67: 6-phosphogluconate dehydrogenase, decarboxylating 2, chloroplastic
A68: Q9LI00 | B68: 6-phosphogluconate dehydrogenase, decarboxylating 1 | J68: B9FK36 | K68: Acetyl-CoA carboxylase 2
A69: Q2R480 | B69: 6-phosphogluconate dehydrogenase, decarboxylating 2, chloroplastic | J69: Q0J709 | K69: ACT domain-containing protein DS12, chloroplastic
A70: B9FK36 | B70: Acetyl-CoA carboxylase 2 | J70: Q10DV7 | K70: Actin-1
A71: Q0J709 | B71: ACT domain-containing protein DS12, chloroplastic | J71: A3C6D7 | K71: Actin-2
A72: Q10DV7 | B72: Actin-1 | J72: Q84TB3 | K72: Actin-depolymerizing factor 4
A73: A3C6D7 | B73: Actin-2 | J73: Q6ZJW9 | K73: Actin-related protein 4
A74: A2XNS1 | B74: Actin-3 | J74: Q9LGQ6 | K74: Acyl transferase 9
A75: P0C542 | B75: Actin-7 | J75: Q08479 | K75: Adenylate kinase 3
A76: Q84TB3 | B76: Actin-depolymerizing factor 4 | J76: Q08480 | K76: Adenylate kinase 4
A77: Q6ZJW9 | B77: Actin-related protein 4 | J77: Q851S8 | K77: Adenylosuccinate synthetase 2, chloroplastic
A78: Q9LGQ6 | B78: Acyl transferase 9 | J78: A2XD35 | K78: Adenylosuccinate synthetase, chloroplastic
A79: Q08479 | B79: Adenylate kinase 3 | J79: P31691 | K79: ADP,ATP carrier protein, mitochondrial
A80: Q08480 | B80: Adenylate kinase 4 | J80: P51823 | K80: ADP-ribosylation factor 2
A81: Q851S8 | B81: Adenylosuccinate synthetase 2, chloroplastic | J81: Q2R8Z5 | K81: Alcohol dehydrogenase 1
A82: A2XD35 | B82: Adenylosuccinate synthetase, chloroplastic | J82: Q0ITW7 | K82: Alcohol dehydrogenase 2
A83: P51823 | B83: ADP-ribosylation factor 2 | J83: A2XAZ3 | K83: Alcohol dehydrogenase class-3
A84: Q2R8Z5 | B84: Alcohol dehydrogenase 1 | J84: A2XID3 | K84: Allene oxide cyclase, chloroplastic
A85: Q0ITW7 | B85: Alcohol dehydrogenase 2 | J85: Q9FXT4 | K85: Alpha-galactosidase
A86: A2XAZ3 | B86: Alcohol dehydrogenase class-3 | J86: Q6Z6L4 | K86: Aminopeptidase M1-A
A87: A2XID3 | B87: Allene oxide cyclase, chloroplastic | J87: Q0J5V5 | K87: Aminopeptidase M1-B
A88: Q9FXT4 | B88: Alpha-galactosidase | J88: Q9XJ29 | K88: Anthranilate synthase alpha subunit 2, chloroplastic
A89: Q6Z6L4 | B89: Aminopeptidase M1-A | J89: B8AU84 | K89: Arginase 1, mitochondrial
A90: Q0J5V5 | B90: Aminopeptidase M1-B | J90: B8AL33 | K90: Arginine biosynthesis bifunctional protein ArgJ, chloroplastic
A91: Q9XJ29 | B91: Anthranilate synthase alpha subunit 2, chloroplastic | J91: P37833 | K91: Aspartate aminotransferase, cytoplasmic
A92: B8AU84 | B92: Arginase 1, mitochondrial | J92: P42211 | K92: Aspartic proteinase
A93: B8AL33 | B93: Arginine biosynthesis bifunctional protein ArgJ, chloroplastic | J93: Q42456 | K93: Aspartic proteinase oryzasin-1
A94: P37833 | B94: Aspartate aminotransferase, cytoplasmic | J94: Q6F4N5 | K94: Aspartyl protease 25
A95: Q9LD61 | B95: Aspartate carbamoyltransferase, chloroplastic | J95: P0C2Z1 | K95: ATP synthase epsilon chain, chloroplastic
A96: P42211 | B96: Aspartic proteinase | J96: P0C519 | K96: ATP synthase subunit 9, mitochondrial
A97: Q42456 | B97: Aspartic proteinase oryzasin-1 | J97: P0C2Z4 | K97: ATP synthase subunit alpha, chloroplastic
A98: Q6F4N5 | B98: Aspartyl protease 25 | J98: P0C520 | K98: ATP synthase subunit alpha, mitochondrial
A99: P0C2Z1 | B99: ATP synthase epsilon chain, chloroplastic | J99: P0C2Z0 | K99: ATP synthase subunit b, chloroplastic
A100: P0C2Z4 | B100: ATP synthase subunit alpha, chloroplastic | J100: P12085 | K100: ATP synthase subunit beta, chloroplastic
A101: P0C520 | B101: ATP synthase subunit alpha, mitochondrial | J101: Q01859 | K101: ATP synthase subunit beta, mitochondrial
A102: P0C2Z0 | B102: ATP synthase subunit b, chloroplastic | J102: Q2QNG7 | K102: ATP-citrate synthase alpha chain protein 3
A103: P12085 | B103: ATP synthase subunit beta, chloroplastic | J103: Q93VT8 | K103: ATP-citrate synthase beta chain protein 1
A104: Q01859 | B104: ATP synthase subunit beta, mitochondrial | J104: Q5Z974 | K104: ATP-dependent zinc metalloprotease FTSH 1, chloroplastic
A105: Q2QNG7 | B105: ATP-citrate synthase alpha chain protein 3 | J105: Q655S1 | K105: ATP-dependent zinc metalloprotease FTSH 2, chloroplastic
A106: Q93VT8 | B106: ATP-citrate synthase beta chain protein 1 | J106: A2X5P7 | K106: Beta-fructofuranosidase, insoluble isoenzyme 1
A107: P0C314 | B107: ATP-dependent Clp protease proteolytic subunit | J107: Q0INM3 | K107: Beta-galactosidase 15
A108: A2X5P7 | B108: Beta-fructofuranosidase, insoluble isoenzyme 1 | J108: Q10NX8 | K108: Beta-galactosidase 6
A109: Q0INM3 | B109: Beta-galactosidase 15 | J109: Q60DX8 | K109: Beta-glucosidase 22
A110: Q10NX8 | B110: Beta-galactosidase 6 | J110: Q0J0N4 | K110: Beta-glucosidase 30
A111: Q7XKV2 | B111: Beta-glucosidase 13 | J111: Q5JK35 | K111: Beta-glucosidase 5
A112: Q60DX8 | B112: Beta-glucosidase 22 | J112: B3VMC0 | K112: Betaine aldehyde dehydrogenase 2
A113: Q0J0N4 | B113: Beta-glucosidase 30 | J113: A2WK50 | K113: Bowman-Birk type bran trypsin inhibitor
A114: Q5JK35 | B114: Beta-glucosidase 5 | J114: Q0JNS6 | K114: Calmodulin-1
A115: B3VMC0 | B115: Betaine aldehyde dehydrogenase 2 | J115: Q6F332 | K115: Calmodulin-2
A116: A2WK50 | B116: Bowman-Birk type bran trypsin inhibitor | J116: Q9SLY8 | K116: Calreticulin
A117: Q2QX45 | B117: Calcium-dependent protein kinase 28 | J117: B9EXM2 | K117: Carbamoyl-phosphate synthase large chain, chloroplastic
A118: Q9SLY8 | B118: Calreticulin | J118: Q6YV23 | K118: Carbamoyl-phosphate synthase small chain, chloroplastic
A119: B9EXM2 | B119: Carbamoyl-phosphate synthase large chain, chloroplastic | J119: Q0E4K1 | K119: Catalase isozyme A
A120: Q0E4K1 | B120: Catalase isozyme A | J120: A2YH64 | K120: Catalase isozyme B
A121: A2YH64 | B121: Catalase isozyme B | J121: Q84T92 | K121: Chalcone--flavonone isomerase
A122: Q84T92 | B122: Chalcone--flavonone isomerase | J122: Q7F9I1 | K122: Chaperone protein ClpC1, chloroplastic
A123: Q7F9I1 | B123: Chaperone protein ClpC1, chloroplastic | J123: Q2QVG9 | K123: Chaperone protein ClpC2, chloroplastic
A124: Q2QVG9 | B124: Chaperone protein ClpC2, chloroplastic | J124: Q8H8C7 | K124: Chitin elicitor-binding protein
A125: Q8H8C7 | B125: Chitin elicitor-binding protein | J125: Q42993 | K125: Chitinase 1
A126: Q42993 | B126: Chitinase 1 | J126: Q7DNA1 | K126: Chitinase 2
A127: Q7DNA1 | B127: Chitinase 2 | J127: O04138 | K127: Chitinase 4
A128: O04138 | B128: Chitinase 4 | J128: Q7Y1Z0 | K128: Chitinase 5
A129: Q7Y1Z0 | B129: Chitinase 5 | J129: Q7XCK6 | K129: Chitinase 8
A130: Q7XCK6 | B130: Chitinase 8 | J130: Q688M5 | K130: Chitinase 9
A131: Q688M5 | B131: Chitinase 9 | J131: P12330 | K131: Chlorophyll a-b binding protein 1, chloroplastic
A132: A2XJ35 | B132: Chlorophyll a-b binding protein, chloroplastic | J132: P12331 | K132: Chlorophyll a-b binding protein 2, chloroplastic
A133: Q6ZHS4 | B133: Cinnamyl alcohol dehydrogenase 2 | J133: A2XJ35 | K133: Chlorophyll a-b binding protein, chloroplastic
A134: Q2QYW2 | B134: Clathrin heavy chain 2 | J134: Q6ZHS4 | K134: Cinnamyl alcohol dehydrogenase 2
A135: Q0DJA0 | B135: Coatomer subunit delta-1 | J135: Q2QYW2 | K135: Clathrin heavy chain 2
A136: Q9FWK4 | B136: Cyanate hydratase | J136: Q7XKE9 | K136: Clathrin light chain 1
A137: A2YCH5 | B137: Cyclin-dependent kinase F-1 | J137: Q6H8D5 | K137: Coatomer subunit beta'-2
A138: P09229 | B138: Cysteine proteinase inhibitor 1 | J138: Q6Z382 | K138: Coatomer subunit gamma-2
A139: A2XS65 | B139: Cysteine proteinase inhibitor 10 | J139: Q9FWK4 | K139: Cyanate hydratase
A140: Q0JNR2 | B140: Cysteine proteinase inhibitor 12 | J140: A2YCH5 | K140: Cyclin-dependent kinase F-1
A141: P20907 | B141: Cysteine proteinase inhibitor 2 | J141: P09229 | K141: Cysteine proteinase inhibitor 1
A142: Q10J94 | B142: Cysteine proteinase inhibitor 8 | J142: A2XS65 | K142: Cysteine proteinase inhibitor 10
A143: Q9XEA6 | B143: Cysteine synthase 1 | J143: Q0JNR2 | K143: Cysteine proteinase inhibitor 12
A144: Q9XEA8 | B144: Cysteine synthase 3 | J144: P20907 | K144: Cysteine proteinase inhibitor 2
A145: Q69S39 | B145: Cytochrome b6-f complex iron-sulfur subunit, chloroplastic | J145: Q10J94 | K145: Cysteine proteinase inhibitor 8
A146: A2Y4S9 | B146: Cytochrome c | J146: Q9XEA6 | K146: Cysteine synthase 1
A147: P0C388 | B147: Cytochrome f | J147: Q9XEA8 | K147: Cysteine synthase 3
A148: Q75HJ0 | B148: DEAD-box ATP-dependent RNA helicase 37 | J148: P49100 | K148: Cytochrome b5
A149: Q10RI7 | B149: DEAD-box ATP-dependent RNA helicase 38 | J149: P0C368 | K149: Cytochrome b559 subunit alpha
A150: Q0JM17 | B150: DEAD-box ATP-dependent RNA helicase 56 | J150: P0C315 | K150: Cytochrome b6
A151: Q2R4Z8 | B151: Dehydrin Rab16D | J151: Q69S39 | K151: Cytochrome b6-f complex iron-sulfur subunit, chloroplastic
A152: Q5Z8V9 | B152: Delta-aminolevulinic acid dehydratase, chloroplastic | J152: A2Y4S9 | K152: Cytochrome c
A153: Q8W4M7 | B153: DNA repair helicase XPD | J153: P0C388 | K153: Cytochrome f
A154: A2XNR6 | B154: Electron transfer flavoprotein subunit alpha, mitochondrial | J154: Q75HJ0 | K154: DEAD-box ATP-dependent RNA helicase 37
A155: O64937 | B155: Elongation factor 1-alpha | J155: Q10RI7 | K155: DEAD-box ATP-dependent RNA helicase 38
A156: P29545 | B156: Elongation factor 1-beta | J156: Q0JM17 | K156: DEAD-box ATP-dependent RNA helicase 56
A157: Q40680 | B157: Elongation factor 1-delta 1 | J157: Q2R4Z8 | K157: Dehydrin Rab16D
A158: Q40682 | B158: Elongation factor 1-delta 2 | J158: O04226 | K158: Delta-1-pyrroline-5-carboxylate synthase 1
A159: Q9ZRI7 | B159: Elongation factor 1-gamma 1 | J159: Q5Z8V9 | K159: Delta-aminolevulinic acid dehydratase, chloroplastic
A160: Q6YW46 | B160: Elongation factor 1-gamma 2 | J160: Q6ZLK0 | K160: Dolichyl-diphosphooligosaccharide--protein glycosyltransferase 48 kDa subunit
A161: Q5Z627 | B161: Elongation factor 1-gamma 3 | J161: O64937 | K161: Elongation factor 1-alpha
A162: Q42971 | B162: Enolase | J162: P29545 | K162: Elongation factor 1-beta
A163: Q6Z0I4 | B163: Enoyl-[acyl-carrier-protein] reductase [NADH] 1, chloroplastic | J163: Q40680 | K163: Elongation factor 1-delta 1
A164: Q6H5J0 | B164: Enoyl-[acyl-carrier-protein] reductase [NADH] 2, chloroplastic | J164: Q40682 | K164: Elongation factor 1-delta 2
A165: P35683 | B165: Eukaryotic initiation factor 4A-1 | J165: Q9ZRI7 | K165: Elongation factor 1-gamma 1
A166: Q6Z2Z4 | B166: Eukaryotic initiation factor 4A-3 | J166: Q6YW46 | K166: Elongation factor 1-gamma 2
A167: B9FXV5 | B167: Eukaryotic translation initiation factor 4G | J167: Q5Z627 | K167: Elongation factor 1-gamma 3
A168: P48600 | B168: Eukaryotic translation initiation factor isoform 4E-2 | J168: Q42971 | K168: Enolase
A169: Q336T5 | B169: Expansin-B3 | J169: Q6Z0I4 | K169: Enoyl-[acyl-carrier-protein] reductase [NADH] 1, chloroplastic
A170: Q7XCA7 | B170: Expansin-B6 | J170: Q6H5J0 | K170: Enoyl-[acyl-carrier-protein] reductase [NADH] 2, chloroplastic
A171: A2YQD9 | B171: Ferredoxin-1, chloroplastic | J171: P35683 | K171: Eukaryotic initiation factor 4A-1
A172: Q69RJ0 | B172: Ferredoxin-dependent glutamate synthase, chloroplastic | J172: Q6Z2Z4 | K172: Eukaryotic initiation factor 4A-3
A173: O23877 | B173: Ferredoxin--NADP reductase, embryo isozyme, chloroplastic | J173: B9FXV5 | K173: Eukaryotic translation initiation factor 4G
A174: P41344 | B174: Ferredoxin--NADP reductase, leaf isozyme, chloroplastic | J174: P48600 | K174: Eukaryotic translation initiation factor isoform 4E-2
A175: P41345 | B175: Ferredoxin--NADP reductase, root isozyme, chloroplastic | J175: Q84PB3 | K175: Eukaryotic translation initiation factor isoform 4G-1
A176: Q42997 | B176: Ferredoxin--nitrite reductase, chloroplastic | J176: Q336T5 | K176: Expansin-B3
A177: Q6K471 | B177: Ferredoxin-thioredoxin reductase catalytic chain, chloroplastic | J177: Q7XCA7 | K177: Expansin-B6
A178: Q6ZD89 | B178: Flavone 3'-O-methyltransferase 1 | J178: A2YQD9 | K178: Ferredoxin-1, chloroplastic
A179: Q9SXP2 | B179: Formate dehydrogenase 1, mitochondrial | J179: Q69RJ0 | K179: Ferredoxin-dependent glutamate synthase, chloroplastic
A180: A2WXV8 | B180: Fructokinase-1 | J180: O23877 | K180: Ferredoxin--NADP reductase, embryo isozyme, chloroplastic
A181: Q0J8G4 | B181: Fructokinase-2 | J181: P41344 | K181: Ferredoxin--NADP reductase, leaf isozyme, chloroplastic
A182: O64422 | B182: Fructose-1,6-bisphosphatase, chloroplastic | J182: P41345 | K182: Ferredoxin--NADP reductase, root isozyme, chloroplastic
A183: A2WXB2 | B183: Fructose-1,6-bisphosphatase, cytosolic | J183: Q42997 | K183: Ferredoxin--nitrite reductase, chloroplastic
A184: P17784 | B184: Fructose-bisphosphate aldolase 1, cytoplasmic | J184: Q6ZD89 | K184: Flavone 3'-O-methyltransferase 1
A185: Q5N725 | B185: Fructose-bisphosphate aldolase 3, cytoplasmic | J185: Q9SXP2 | K185: Formate dehydrogenase 1, mitochondrial
A186: Q40677 | B186: Fructose-bisphosphate aldolase, chloroplastic | J186: A2WXV8 | K186: Fructokinase-1
A187: Q01K11 | B187: Gamma-aminobutyrate transaminase 1, mitochondrial | J187: Q0J8G4 | K187: Fructokinase-2
A188: A2Z7B3 | B188: GDP-mannose 3,5-epimerase 1 | J188: O64422 | K188: Fructose-1,6-bisphosphatase, chloroplastic
A189: Q2R1V8 | B189: GDP-mannose 3,5-epimerase 2 | J189: A2WXB2 | K189: Fructose-1,6-bisphosphatase, cytosolic
A190: Q6ESF0 | B190: Germin-like protein 2-4 | J190: P17784 | K190: Fructose-bisphosphate aldolase 1, cytoplasmic
A191: Q851K1 | B191: Germin-like protein 3-6 | J191: Q5N725 | K191: Fructose-bisphosphate aldolase 3, cytoplasmic
A192: Q6I544 | B192: Germin-like protein 5-1 | J192: Q40677 | K192: Fructose-bisphosphate aldolase, chloroplastic
A193: Q6ZBZ2 | B193: Germin-like protein 8-14 | J193: Q01K11 | K193: Gamma-aminobutyrate transaminase 1, mitochondrial
A194: Q6AVT2 | B194: Glucose-1-phosphate adenylyltransferase large subunit 1, chloroplastic/amyloplastic | J194: A2Z7B3 | K194: GDP-mannose 3,5-epimerase 1
A195: Q69T99 | B195: Glucose-1-phosphate adenylyltransferase small subunit 1, chloroplastic/amyloplastic | J195: Q2R1V8 | K195: GDP-mannose 3,5-epimerase 2
A196: P15280 | B196: Glucose-1-phosphate adenylyltransferase small subunit 2, chloroplastic/amyloplastic/cytosolic | J196: Q6ESF0 | K196: Germin-like protein 2-4
A197: P42862 | B197: Glucose-6-phosphate isomerase, cytosolic A | J197: Q851K1 | K197: Germin-like protein 3-6
A198: P42863 | B198: Glucose-6-phosphate isomerase, cytosolic B | J198: Q6ZBZ2 | K198: Germin-like protein 8-14
A199: A2WNF5 | B199: Glucosidase 2 subunit beta | J199: Q6AVT2 | K199: Glucose-1-phosphate adenylyltransferase large subunit 1, chloroplastic/amyloplastic
A200: A2XMV1 | B200: Glutamate dehydrogenase 1, mitochondrial | J200: Q688T8 | K200: Glucose-1-phosphate adenylyltransferase large subunit 3, chloroplastic/amyloplastic
... 232 more rows

Sheet Comparative Protein Abundance
A1: Upregulated Protein | E1: Downregulated Protein | K1: Number of Proteins
A2: Accession | B2: Protein | C2: Fold Change | E2: Accession | F2: Protein | G2: Fold Change | J2: Upregulated Proteins | K2: 15
A3: P0C367 | B3: Photosystem II CP43 protein | C3: 1.1811 | E3: Q7Y1Z0 | F3: Chitinase 5 | G3: -1.50325 | J3: Protein Exclusive to NaLS-treated | K3: 60
A4: P0C359 | B4: Photosystem I iron-sulfur center | C4: 1.07513 | E4: Q42993 | F4: Chitinase 1 | G4: -1.48961 | J4: Downregulated Proteins | K4: 28
A5: P0C362 | B5: Photosystem II CP47 protein | C5: 0.962446 | E5: P0C2Z1 | F5: ATP synthase epsilon chain, chloroplastic | G5: -1.34773 | J5: Protein Exclusive to Control | K5: 41
A6: P0C433 | B6: Photosystem II protein D1 | C6: 0.937846 | E6: Q6ZFU6 | F6: Thioredoxin reductase NTRB | G6: -0.93522
A7: Q2QYW2 | B7: Clathrin heavy chain 2 | C7: 0.927112 | E7: Q9LGQ6 | F7: Acyl transferase 9 | G7: -0.904535
A8: A2XJ35 | B8: Chlorophyll a-b binding protein, chloroplastic | C8: 0.922371 | E8: Q7FAY6 | F8: Probable UDP-arabinopyranose mutase 2 | G8: -0.885329
A9: P0C436 | B9: Photosystem II D2 protein | C9: 0.874711 | E9: Q6ZFT5 | F9: Ribose-phosphate pyrophosphokinase 4 | G9: -0.873207
A10: P18566 | B10: Ribulose bisphosphate carboxylase small chain A, chloroplastic | C10: 0.66129 | E10: B8BJ39 | F10: Pyruvate kinase 1, cytosolic | G10: -0.842546
A11: Q2QVG9 | B11: Chaperone protein ClpC2, chloroplastic | C11: 0.634115 | E11: Q8LJU5 | F11: 40S ribosomal protein S7 | G11: -0.808968
A12: A2XRZ6 | B12: Probable aldo-keto reductase 3 | C12: 0.585803 | E12: A2WNF5 | F12: Glucosidase 2 subunit beta | G12: -0.803812
A13: Q40682 | B13: Elongation factor 1-delta 2 | C13: 0.584471 | E13: A2Y4S9 | F13: Cytochrome c | G13: -0.750532
A14: O64937 | B14: Elongation factor 1-alpha | C14: 0.524749 | E14: Q9LSU0 | F14: Proteasome subunit alpha type-3 | G14: -0.731038
A15: Q7F9I1 | B15: Chaperone protein ClpC1, chloroplastic | C15: 0.504763 | E15: Q941Z0 | F15: Probable NADPH:quinone oxidoreductase 1 | G15: -0.723101
A16: Q6K5G8 | B16: Glyceraldehyde-3-phosphate dehydrogenase 3, cytosolic | C16: 0.440004 | E16: Q0DAE4 | F16: Glutaredoxin-C8 | G16: -0.69478
A17: Q40677 | B17: Fructose-bisphosphate aldolase, chloroplastic | C17: 0.322455 | E17: P14656 | F17: Glutamine synthetase cytosolic isozyme 1-1 | G17: -0.640245
E18: Q7XPL2 | F18: Oxygen-dependent coproporphyrinogen-III oxidase, chloroplastic | G18: -0.638393
A19: Proteins Exclusive to Treated | E19: Q2QYL3 | F19: Non-specific lipid-transfer protein 3 | G19: -0.624339
A20: Accession | B20: Protein | C20: Fold Change | E20: Q6Z965 | F20: 12-oxophytodienoate reductase 7 | G20: -0.593855
A21: Q10RE5 | B21: 1,2-dihydroxy-3-keto-5-methylthiopentene dioxygenase 2 | C21: N/A | E21: Q10KF0 | F21: Proteasome subunit alpha type-2 | G21: -0.565903
A22: P46465 | B22: 26S proteasome regulatory subunit 6A homolog | C22: N/A | E22: Q42972 | F22: Malate dehydrogenase, glyoxysomal | G22: -0.562862
A23: Q2QWT4 | B23: 3'(2'),5'-bisphosphate nucleotidase | C23: N/A | E23: Q6ERW7 | F23: Probable cinnamyl alcohol dehydrogenase 8C | G23: -0.532865
A24: P0C464 | B24: 30S ribosomal protein S11, chloroplastic | C24: N/A | E24: P35686 | F24: 40S ribosomal protein S20 | G24: -0.487936
A25: Q6AVG6 | B25: 4-hydroxy-3-methylbut-2-enyl diphosphate reductase, chloroplastic | C25: N/A | E25: A2XID3 | F25: Allene oxide cyclase, chloroplastic | G25: -0.480476
A26: Q6ETX3 | B26: 60S ribosomal protein L10-1 | C26: N/A | E26: Q5N725 | F26: Fructose-bisphosphate aldolase 3, cytoplasmic | G26: -0.429599
A27: P31691 | B27: ADP,ATP carrier protein, mitochondrial | C27: N/A | E27: P52428 | F27: Proteasome subunit alpha type-1 | G27: -0.388421
A28: P0C519 | B28: ATP synthase subunit 9, mitochondrial | C28: N/A | E28: P0DKK8 | F28: 40S ribosomal protein S10-1 | G28: -0.358925
A29: Q5Z974 | B29: ATP-dependent zinc metalloprotease FTSH 1, chloroplastic | C29: N/A | E29: Q5JK35 | F29: Beta-glucosidase 5 | G29: -0.345758
A30: Q655S1 | B30: ATP-dependent zinc metalloprotease FTSH 2, chloroplastic | C30: N/A | E30: P42862 | F30: Glucose-6-phosphate isomerase, cytosolic A | G30: -0.340555
A31: Q0JNS6 | B31: Calmodulin-1 | C31: N/A
A32: Q6F332 | B32: Calmodulin-2 | C32: N/A | E32: Proteins Exclusive to Control
A33: Q6YV23 | B33: Carbamoyl-phosphate synthase small chain, chloroplastic | C33: N/A | E33: Accession | F33: Protein | G33: Fold Change
A34: P12330 | B34: Chlorophyll a-b binding protein 1, chloroplastic | C34: N/A | E34: Q6Z7V2 | F34: 24.1 kDa heat shock protein, mitochondrial | G34: N/A
A35: P12331 | B35: Chlorophyll a-b binding protein 2, chloroplastic | C35: N/A | E35: Q5N8G1 | F35: 2-C-methyl-D-erythritol 4-phosphate cytidylyltransferase, chloroplastic | G35: N/A
A36: Q7XKE9 | B36: Clathrin light chain 1 | C36: N/A | E36: P0C469 | F36: 30S ribosomal protein S15, chloroplastic | G36: N/A
A37: Q6H8D5 | B37: Coatomer subunit beta'-2 | C37: N/A | E37: Q9ZST1 | F37: 30S ribosomal protein S17, chloroplastic | G37: N/A
A38: Q6Z382 | B38: Coatomer subunit gamma-2 | C38: N/A | E38: P0C476 | F38: 30S ribosomal protein S18, chloroplastic | G38: N/A
A39: P49100 | B39: Cytochrome b5 | C39: N/A | E39: Q69UI2 | F39: 40S ribosomal protein S13-1 | G39: N/A
A40: P0C368 | B40: Cytochrome b559 subunit alpha | C40: N/A | E40: Q8S2G0 | F40: 4-diphosphocytidyl-2-C-methyl-D-erythritol kinase, chloroplastic | G40: N/A
A41: P0C315 | B41: Cytochrome b6 | C41: N/A | E41: P56724 | F41: 60S acidic ribosomal protein P3 | G41: N/A
A42: O04226 | B42: Delta-1-pyrroline-5-carboxylate synthase 1 | C42: N/A | E42: Q10AZ4 | F42: Actin-3 | G42: N/A
A43: Q6ZLK0 | B43: Dolichyl-diphosphooligosaccharide--protein glycosyltransferase 48 kDa subunit | C43: N/A | E43: P0C540 | F43: Actin-7 | G43: N/A
A44: Q84PB3 | B44: Eukaryotic translation initiation factor isoform 4G-1 | C44: N/A | E44: Q9LD61 | F44: Aspartate carbamoyltransferase, chloroplastic | G44: N/A
A45: Q688T8 | B45: Glucose-1-phosphate adenylyltransferase large subunit 3, chloroplastic/amyloplastic | C45: N/A | E45: P0C314 | F45: ATP-dependent Clp protease proteolytic subunit | G45: N/A
A46: Q2R2Z0 | B46: Glutamyl-tRNA(Gln) amidotransferase subunit B, chloroplastic/mitochondrial | C46: N/A | E46: Q7XKV2 | F46: Beta-glucosidase 13 | G46: N/A
A47: Q84TA3 | B47: Leukotriene A-4 hydrolase homolog | C47: N/A | E47: Q2QX45 | F47: Calcium-dependent protein kinase 28 | G47: N/A
A48: Q2QMG2 | B48: Methylcrotonoyl-CoA carboxylase subunit alpha, mitochondrial | C48: N/A | E48: Q0DJA0 | F48: Coatomer subunit delta-1 | G48: N/A
A49: Q9XGX7 | B49: Mitochondrial import inner membrane translocase subunit Tim9 | C49: N/A | E49: Q8W4M7 | F49: DNA repair helicase XPD | G49: N/A
A50: Q6K548 | B50: Mitochondrial outer membrane protein porin 1 | C50: N/A | E50: Q6ZDY8 | F50: Electron transfer flavoprotein subunit alpha, mitochondrial | G50: N/A
A51: Q6L5I5 | B51: Mitochondrial outer membrane protein porin 2 | C51: N/A | E51: Q6K471 | F51: Ferredoxin-thioredoxin reductase catalytic chain, chloroplastic | G51: N/A
A52: Q84P97 | B52: Mitochondrial outer membrane protein porin 5 | C52: N/A | E52: Q6I544 | F52: Germin-like protein 5-1 | G52: N/A
A53: Q5J4W4 | B53: Mitogen-activated protein kinase 2 | C53: N/A | E53: Q0JKD0 | F53: Glutamate synthase 1 [NADH], chloroplastic | G53: N/A
A54: Q84SD6 | B54: NADH dehydrogenase [ubiquinone] iron-sulfur protein 3 | C54: N/A | E54: Q0ITU1 | F54: Methylthioribose-1-phosphate isomerase | G54: N/A
A55: O65091 | B55: Non-specific lipid-transfer protein 4 | C55: N/A | E55: Q6Z2X3 | F55: Molybdopterin synthase catalytic subunit | G55: N/A
A56: O04986 | B56: Non-symbiotic hemoglobin 1 | C56: N/A | E56: Q6Z1J6 | F56: Obg-like ATPase 1 | G56: N/A
A57: O04985 | B57: Non-symbiotic hemoglobin 2 | C57: N/A | E57: Q7XUP7 | F57: Peptide methionine sulfoxide reductase A2-1 | G57: N/A
A58: Q336R9 | B58: Peptide methionine sulfoxide reductase A4, chloroplastic | C58: N/A | E58: Q84VG0 | F58: Probable calcium-binding protein CML7 | G58: N/A
A59: Q0DG05 | B59: Photosystem I reaction center subunit VI, chloroplastic | C59: N/A | E59: Q10MJ1 | F59: Probable glutamyl endopeptidase, chloroplastic | G59: N/A
A60: Q7XPY2 | B60: Plasma membrane ATPase | C60: N/A | E60: Q6ZL42 | F60: Probable histone H2A.2 | G60: N/A
A61: Q7XSQ9 | B61: Probable aquaporin PIP1-2 | C61: N/A | E61: P49030 | F61: Protein mago nashi homolog 2 | G61: N/A
A62: Q7XLR1 | B62: Probable aquaporin PIP2-6 | C62: N/A | E62: Q69TH8 | F62: Putative 12-oxophytodienoate reductase 11 | G62: N/A
A63: Q8H7Y8 | B63: Probable histone H2A variant 1 | C63: N/A | E63: P37890 | F63: Serine carboxypeptidase 1 | G63: N/A
A64: Q69SV0 | B64: Probable L-ascorbate peroxidase 8, chloroplastic | C64: N/A | E64: Q7XKA8 | F64: Serine/threonine-protein kinase SAPK5 | G64: N/A
A65: Q8S0J7 | B65: Probable membrane-associated 30 kDa protein, chloroplastic | C65: N/A | E65: P55857 | F65: Small ubiquitin-related modifier 1 | G65: N/A
A66: Q9ZTS1 | B66: Probable methionine--tRNA ligase | C66: N/A | E66: Q7X8R5 | F66: Thioredoxin M2, chloroplastic | G66: N/A
A67: Q6K439 | B67: Probable plastid-lipid-associated protein 2, chloroplastic | C67: N/A | E67: Q7XKD0 | F67: Thioredoxin X, chloroplastic | G67: N/A
A68: Q7XBW5 | B68: Probable plastid-lipid-associated protein 3, chloroplastic | C68: N/A | E68: Q0J9V5 | F68: Thioredoxin-like protein CXXS1 | G68: N/A
A69: Q53JI9 | B69: Probable sucrose-phosphate synthase 5 | C69: N/A | E69: Q7F8T6 | F69: Tricin synthase 2 | G69: N/A
A70: Q5NBT9 | B70: Protein TPR1 | C70: N/A | E70: Q6H468 | F70: Two-component response regulator ORR11 | G70: N/A
A71: Q10G39 | B71: Pyruvate dehydrogenase E1 component subunit beta-4, chloroplastic | C71: N/A | E71: Q6ETX3 | F71: U2 small nuclear ribonucleoprotein B'' | G71: N/A
A72: P40393 | B72: Ras-related protein RIC2 | C72: N/A | E72: Q9ARZ9 | F72: Ubiquitin-40S ribosomal protein S27a-1 | G72: N/A
A73: Q10M12 | B73: Ricin B-like lectin R40G2 | C73: N/A | E73: Q6Z4G3 | F73: UDP-arabinopyranose mutase 3 | G73: N/A
A74: Q10LP5 | B74: Sucrose synthase 4 | C74: N/A | E74: Q0J716 | F74: Villin-5 | G74: N/A
A75: P28752 | B75: Tubulin alpha-1 chain | C75: N/A
A76: Q43594 | B76: Tubulin beta-1 chain | C76: N/A
A77: Q40665 | B77: Tubulin beta-3 chain | C77: N/A
A78: P51431 | B78: Ubiquitin-40S ribosomal protein S27a-2 | C78: N/A
A79: Q6ATY4 | B79: UPF0603 protein Os05g0401100, chloroplastic | C79: N/A
A80: Q76BW5 | B80: Xyloglucan endotransglycosylase/hydrolase protein 8 | C80: N/A

Sheet Gene Ontology Analysis 1
A1: Accession | B1: Protein Name | C1: Binding | D1: Catalytic Activity | E1: Structural Molecule Activity | F1: Antioxidant Activity | G1: Transporter Activity | H1: Cytoskeleton | I1: Other | J1: Cytosol | K1: Nucleus | L1: Chloroplast | M1: Mitochondrion | N1: Endoplasmic Reticulum | O1: Golgi Apparatus | P1: Plasma Membrane | Q1: Metabolic Process | R1: Cellular Process | S1: Cellular Component Organisation | T1: Localisation | U1: Biological Regulation | V1: Response to Stimulus | W1: Signalling | X1: KEGG Pathway
A2: Upregulated Proteins
A3: Q7F9I1 | B3: Chaperone protein ClpC1, chloroplastic | C3: 1 | L3: 1 | Q3: 1 | X3: Translational Modification
A4: Q2QVG9 | B4: Chaperone protein ClpC2, chloroplastic | C4: 1 | L4: 1 | Q4: 1 | X4: Translational Modification
A5: A2XJ35 | B5: Chlorophyll a-b binding protein, chloroplastic | C5: 1 | L5: 1 | Q5: 1 | R5: 1 | X5: Photosynthesis
A6: Q2QYW2 | B6: Clathrin heavy chain 2 | C6: 1 | E6: 1 | I6: 1 | T6: 1
A7: O64937 | B7: Elongation factor 1-alpha | C7: 1 | D7: 1 | I7: 1 | Q7: 1 | R7: 1 | U7: 1 | X7: Protein Biosynthesis
A8: Q40682 | B8: Elongation factor 1-delta 2 | C8: 1 | J8: 1 | Q8: 1 | R8: 1 | U8: 1 | X8: Protein Biosynthesis
A9: Q40677 | B9: Fructose-bisphosphate aldolase, chloroplastic | D9: 1 | L9: 1 | Q9: 1 | R9: 1 | X9: Carbohydrate Metabolism
A10: Q6K5G8 | B10: Glyceraldehyde-3-phosphate dehydrogenase 3, cytosolic | C10: 1 | I10: 1 | Q10: 1 | R10: 1 | X10: Carbohydrate Metabolism
A11: P0C359 | B11: Photosystem I iron-sulfur center | C11: 1 | D11: 1 | L11: 1 | Q11: 1 | R11: 1 | X11: Photosynthesis
A12: P0C367 | B12: Photosystem II CP43 protein | C12: 1 | D12: 1 | L12: 1 | Q12: 1 | R12: 1 | X12: Photosynthesis
A13: P0C362 | B13: Photosystem II CP47 protein | C13: 1 | D13: 1 | L13: 1 | Q13: 1 | R13: 1 | X13: Photosynthesis
A14: P0C436 | B14: Photosystem II D2 protein | C14: 1 | D14: 1 | L14: 1 | Q14: 1 | R14: 1 | X14: Photosynthesis
A15: P0C433 | B15: Photosystem II protein D1 | C15: 1 | D15: 1 | L15: 1 | Q15: 1 | R15: 1 | V15: 1 | X15: Photosynthesis
A16: A2XRZ6 | B16: Probable aldo-keto reductase 3 | D16: 1 | Q16: 1
A17: P18566 | B17: Ribulose bisphosphate carboxylase small chain A, chloroplastic | D17: 1 | Q17: 1 | R17: 1 | X17: Carbon Metabolism | Y17: Photosynthesis | Z17: Secondary Metabolite Biosynthesis
B18: Total | C18: =SUM(C3:C17) -> 12 | D18: 9 | E18: 1 | F18: 0 | G18: 0 | H18: 0 | I18: 3 | J18: 1 | K18: 0 | L18: 9 | M18: 0 | N18: 0 | O18: 0 | P18: 0 | Q18: 14 | R18: 11 | S18: 0 | T18: 1 | U18: =SUM(U4:U17) -> 2 | V18: =SUM(V3:V17) -> 1 | W18: =SUM(W3:W17) -> 0
A21: Proteins exclusive to treated
A22: Q10RE5 | B22: 1,2-dihydroxy-3-keto-5-methylthiopentene dioxygenase 2 | C22: 1 | D22: 1 | I22: 1 | K22: 1 | Q22: 1 | R22: 1 | X22: Amino Acid Metabolism
A23: P46465 | B23: 26S proteasome regulatory subunit 6A homolog | C23: 1 | D23: 1 | I23: 1 | K23: 1 | Q23: 1 | R23: 1 | S23: 1 | U23: 1 | X23: Protein Degradation
A24: Q2QWT4 | B24: 3'(2'),5'-bisphosphate nucleotidase | C24: 1 | D24: 1 | Q24: 1 | R24: 1 | X24: Carbohydrate Metabolism
A25: P0C464 | B25: 30S ribosomal protein S11, chloroplastic | C25: 1 | E25: 1 | L25: 1 | Q25: 1 | R25: 1 | S25: 1
A26: Q6AVG6 | B26: 4-hydroxy-3-methylbut-2-enyl diphosphate reductase, chloroplastic | C26: 1 | D26: 1 | L26: 1 | Q26: 1 | R26: 1 | X26: Secondary Metabolite Biosynthesis
A27: Q6ETX3 | B27: 60S ribosomal protein L10-1 | C27: 1 | K27: 1 | Q27: 1 | R27: 1 | S27: 1 | X27: Translation
A28: P31691 | B28: ADP,ATP carrier protein, mitochondrial | G28: 1 | M28: 1 | T28: 1 | V28: 1 | X28: Transport
A29: P0C519 | B29: ATP synthase subunit 9, mitochondrial | C29: 1 | G29: 1 | M29: 1 | Q29: 1 | R29: 1 | T29: 1 | X29: Energy Metabolism | Y29: Transport
A30: Q5Z974 | B30: ATP-dependent zinc metalloprotease FTSH 1, chloroplastic | C30: 1 | D30: 1 | L30: 1 | Q30: 1 | R30: 1 | S30: 1 | U30: 1 | V30: 1 | X30: Translational Modification
A31: Q655S1 | B31: ATP-dependent zinc metalloprotease FTSH 2, chloroplastic | C31: 1 | D31: 1 | L31: 1 | Q31: 1 | R31: 1 | S31: 1 | U31: 1 | V31: 1 | X31: Translational Modification
A32: Q0JNS6 | B32: Calmodulin-1 | C32: 1 | R32: 1 | U32: 1 | V32: 1 | W32: 1 | X32: Signalling and Cellular Processes
A33: Q6F332 | B33: Calmodulin-2 | C33: 1 | R33: 1 | U33: 1 | V33: 1 | W33: 1 | X33: Signalling and Cellular Processes
A34: Q6YV23 | B34: Carbamoyl-phosphate synthase small chain, chloroplastic | C34: 1 | D34: 1 | L34: 1 | Q34: 1 | R34: 1 | X34: Amino Acid Metabolism
A35: P12330 | B35: Chlorophyll a-b binding protein 1, chloroplastic | C35: 1 | L35: 1 | Q35: 1 | R35: 1 | V35: 1 | X35: Photosynthesis
A36: P12331 | B36: Chlorophyll a-b binding protein 2, chloroplastic | C36: 1 | L36: 1 | Q36: 1 | R36: 1 | V36: 1 | X36: Photosynthesis
A37: Q7XKE9 | B37: Clathrin light chain 1 | C37: 1 | E37: 1 | I37: 1 | O37: 1 | P37: 1 | R37: 1 | S37: 1 | T37: 1 | X37: Transport
A38: Q6H8D5 | B38: Coatomer subunit beta'-2 | E38: 1 | I38: 1 | O38: 1 | T38: 1 | X38: Transport
A39: Q6Z382 | B39: Coatomer subunit gamma-2 | E39: 1 | I39: 1 | O39: 1 | R39: 1 | T39: 1 | X39: Signalling and Cellular Processes | Y39: Transport
A40: P49100 | B40: Cytochrome b5 | C40: 1 | N40: 1 | Q40: 1 | X40: Energy Metabolism | Y40: Transport
A41: P0C368 | B41: Cytochrome b559 subunit alpha | C41: 1 | D41: 1 | L41: 1 | Q41: 1 | R41: 1 | X41: Photosynthesis | Y41: Transport
A42: P0C315 | B42: Cytochrome b6 | C42: 1 | D42: 1 | L42: 1 | Q42: 1 | R42: 1 | X42: Photosynthesis | Y42: Transport
A43: O04226 | B43: Delta-1-pyrroline-5-carboxylate synthase 1 | C43: 1 | D43: 1 | Q43: 1 | R43: 1 | X43: Amino Acid Metabolism | Y43: Stress Response
A44: Q6ZLK0 | B44: Dolichyl-diphosphooligosaccharide--protein glycosyltransferase 48 kDa subunit | N44: 1 | Q44: 1 | R44: 1 | S44: 1 | X44: Translational Modification
A45: Q84PB3 | B45: Eukaryotic translation initiation factor isoform 4G-1 | C45: 1 | I45: 1 | Q45: 1 | R45: 1 | U45: 1 | X45: Protein Biosynthesis | Y45: Translation
A46: Q688T8 | B46: Glucose-1-phosphate adenylyltransferase large subunit 3, chloroplastic/amyloplastic | C46: 1 | D46: 1 | L46: 1 | Q46: 1 | R46: 1 | X46: Starch Biosynthesis
A47: Q2R2Z0 | B47: Glutamyl-tRNA(Gln) amidotransferase subunit B, chloroplastic/mitochondrial | C47: 1 | D47: 1 | L47: 1 | M47: 1 | Q47: 1 | R47: 1 | X47: Protein Biosynthesis | Y47: Translation
A48: Q84TA3 | B48: Leukotriene A-4 hydrolase homolog | C48: 1 | D48: 1 | I48: 1 | Q48: 1 | R48: 1 | X48: Lipid Metabolism
A49: Q2QMG2 | B49: Methylcrotonoyl-CoA carboxylase subunit alpha, mitochondrial | C49: 1 | D49: 1 | M49: 1 | Q49: 1 | R49: 1 | X49: Amino Acid Metabolism
A50: Q9XGX7 | B50: Mitochondrial import inner membrane translocase subunit Tim9 | C50: 1 | M50: 1 | T50: 1 | X50: Transport
A51: Q6K548 | B51: Mitochondrial outer membrane protein porin 1 | G51: 1 | M51: 1 | T51: 1 | X51: Transport
A52: Q6L5I5 | B52: Mitochondrial outer membrane protein porin 2 | G52: 1 | M52: 1 | T52: 1 | X52: Transport
A53: Q84P97 | B53: Mitochondrial outer membrane protein porin 5 | G53: 1 | M53: 1 | T53: 1 | X53: Transport
A54: Q5J4W4 | B54: Mitogen-activated protein kinase 2 | C54: 1 | D54: 1 | I54: 1 | K54: 1 | Q54: 1 | R54: 1 | U54: 1 | V54: 1 | W54: 1
A55: Q84SD6 | B55: NADH dehydrogenase [ubiquinone] iron-sulfur protein 3 | M55: 1 | Q55: 1 | R55: 1 | X55: Transport
A56: O65091 | B56: Non-specific lipid-transfer protein 4 | C56: 1 | T56: 1 | X56: Transport
A57: O04986 | B57: Non-symbiotic hemoglobin 1 | C57: 1
A58: O04985 | B58: Non-symbiotic hemoglobin 2 | C58: 1
A59: Q336R9 | B59: Peptide methionine sulfoxide reductase A4, chloroplastic | D59: 1 | L59: 1 | Q59: 1 | R59: 1 | V59: 1 | X59: Stress Response
A60: Q0DG05 | B60: Photosystem I reaction center subunit VI, chloroplastic | L60: 1 | Q60: 1 | R60: 1 | X60: Photosynthesis
A61: Q7XPY2 | B61: Plasma membrane ATPase | C61: 1 | G61: 1 | P61: 1 | R61: 1 | T61: 1 | U61: 1 | X61: Energy Metabolism | Y61: Transport
A62: Q7XSQ9 | B62: Probable aquaporin PIP1-2 | G62: 1 | P62: 1 | T62: 1 | V62: 1 | X62: Transport
A63: Q7XLR1 | B63: Probable aquaporin PIP2-6 | G63: 1 | P63: 1 | T63: 1 | V63: 1 | X63: Transport
A64: Q8H7Y8 | B64: Probable histone H2A variant 1 | C64: 1 | I64: 1 | K64: 1 | R64: 1 | S64: 1 | X64: Signalling and Cellular Processes
A65: Q69SV0 | B65: Probable L-ascorbate peroxidase 8, chloroplastic | C65: 1 | D65: 1 | L65: 1 | Q65: 1 | R65: 1 | V65: 1 | X65: Carbohydrate Metabolism | Y65: Plant Defense | Z65: Stress Response
A66: Q8S0J7 | B66: Probable membrane-associated 30 kDa protein, chloroplastic | L66: 1
A67: Q9ZTS1 | B67: Probable methionine--tRNA ligase | C67: 1 | D67: 1 | I67: 1 | Q67: 1 | R67: 1 | X67: Amino Acid Biosynthesis | Y67: Translational Modification
A68: Q6K439 | B68: Probable plastid-lipid-associated protein 2, chloroplastic | L68: 1
A69: Q7XBW5 | B69: Probable plastid-lipid-associated protein 3, chloroplastic | L69: 1
A70: Q53JI9 | B70: Probable sucrose-phosphate synthase 5 | D70: 1 | Q70: 1 | R70: 1 | X70: Carbohydrate Metabolism
A71: Q5NBT9 | B71: Protein TPR1 | Q71: 1 | R71: 1 | U71: 1
A72: Q10G39 | B72: Pyruvate dehydrogenase E1 component subunit beta-4, chloroplastic | D72: 1 | L72: 1 | Q72: 1 | R72: 1 | X72: Glycolysis
A73: P40393 | B73: Ras-related protein RIC2 | C73: 1 | D73: 1 | P73: 1 | R73: 1 | T73: 1 | U73: 1 | W73: 1 | X73: Transport
A74: Q10M12 | B74: Ricin B-like lectin R40G2 | C74: 1
A75: Q10LP5 | B75: Sucrose synthase 4 | D75: 1 | Q75: 1 | R75: 1 | X75: Carbohydrate Metabolism
A76: P28752 | B76: Tubulin alpha-1 chain | C76: 1 | D76: 1 | E76: 1 | H76: 1 | R76: 1 | S76: 1 | X76: Signalling and Cellular Process | Y76: Transport
A77: Q43594 | B77: Tubulin beta-1 chain | C77: 1 | D77: 1 | E77: 1 | H77: 1 | R77: 1 | S77: 1 | X77: Signalling and Cellular Process | Y77: Transport
A78: Q40665 | B78: Tubulin beta-3 chain | C78: 1 | D78: 1 | E78: 1 | H78: 1 | R78: 1 | S78: 1 | X78: Signalling and Cellular Process | Y78: Transport
A79: P51431 | B79: Ubiquitin-40S ribosomal protein S27a-2 | C79: 1 | E79: 1 | I79: 1 | K79: 1 | Q79: 1 | R79: 1 | X79: Translational Modification
A80: Q6ATY4 | B80: UPF0603 protein Os05g0401100, chloroplastic | D80: 1 | L80: 1 | Q80: 1 | R80: 1
A81: Q76BW5 | B81: Xyloglucan endotransglycosylase/hydrolase protein 8 | D81: 1 | Q81: 1 | R81: 1 | S81: 1 | X81: Cell Wall Biogenesis/Degradation
B82: Total | C82: =SUM(C22:C81) -> 39 | D82: =SUM(D22:D81) -> 27 | E82: 8 | F82: 0 | G82: 8 | H82: 3 | I82: 11 | J82: 0 | K82: 6 | L82: 19 | M82: 9 | N82: 2 | O82: 3 | P82: 5 | Q82: 35 | R82: 44 | S82: 12 | T82: 14 | U82: 10 | V82: 12 | W82: 4
B83: Total Upregulated Proteins | C83: =SUM(C18,C82) -> 51 | D83: =SUM(D18,D82) -> 36 | E83: 9 | F83: 0 | G83: 8 | H83: 3 | I83: 14 | J83: 1 | K83: 6 | L83: 28 | M83: 9 | N83: 2 | O83: 3 | P83: 5 | Q83: 49 | R83: 55 | S83: 12 | T83: 15 | U83: 12 | V83: 13 | W83: 4
A85: Downregulated Proteins
A86: Q6Z965 | B86: 12-oxophytodienoate reductase 7 | C86: 1 | D86: 1 | Q86: 1 | R86: 1 | U86: 1 | V86: 1 | X86: Secondary metabolite biosynthesis
A87: P0DKK8 | B87: 40S ribosomal protein S10-1 | E87: 1 | I87: 1 | Q87: 1 | R87: 1 | S87: 1 | X87: Translational Modification
A88: P35686 | B88: 40S ribosomal protein S20 | C88: 1 | E88: 1 | J88: 1 | Q88: 1 | R88: 1 | X88: Translational Modification
A89: Q8LJU5 | B89: 40S ribosomal protein S7 | E89: 1 | I89: 1 | J89: 1 | Q89: 1 | R89: 1 | S89: 1 | X89: Translational Modification
A90: Q9LGQ6 | B90: Acyl transferase 9 | D90: 1
A91: A2XID3 | B91: Allene oxide cyclase, chloroplastic | D91: 1 | L91: 1 | Q91: 1 | R91: 1 | U91: 1 | V91: 1 | W91: 1
A92: P0C2Z1 | B92: ATP synthase epsilon chain, chloroplastic | C92: 1 | D92: 1 | G92: 1 | L92: 1 | Q92: 1 | R92: 1 | T92: 1
A93: Q5JK35 | B93: Beta-glucosidase 5 | D93: 1 | Q93: 1 | X93: Carbohydrate Metabolism | Y93: Secondary Metabolite Biosynthesis
A94: Q42993 | B94: Chitinase 1 | C94: 1 | D94: 1 | Q94: 1 | R94: 1 | V94: 1
A95: Q7Y1Z0 | B95: Chitinase 5 | C95: 1 | D95: 1 | Q95: 1 | R95: 1 | V95: 1
A96: A2Y4S9 | B96: Cytochrome c | C96: 1 | D96: 1 | M96: 1 | Q96: 1 | R96: 1
A97: Q5N725 | B97: Fructose-bisphosphate aldolase 3, cytoplasmic | D97: 1 | J97: 1 | Q97: 1 | R97: 1
A98: P42862 | B98: Glucose-6-phosphate isomerase, cytosolic A | C98: 1 | D98: 1 | I98: 1 | Q98: 1 | R98: 1 | X98: Carbohydrate Metabolism | Y98: Glycolysis | Z98: Secondary Metabolite Biosynthesis
A99: A2WNF5 | B99: Glucosidase 2 subunit beta | N99: 1 | Q99: 1 | R99: 1 | V99: 1 | X99: Signalling and Cellular Process
A100: P14656 | B100: Glutamine synthetase cytosolic isozyme 1-1 | C100: 1 | D100: 1 | Q100: 1 | R100: 1 | X100: Amino Acid Biosynthesis | Y100: Nitrogen Metabolism
A101: Q0DAE4 | B101: Glutaredoxin-C8 | D101: 1 | F101: 1 | Q101: 1 | R101: 1 | U101: 1 | V101: 1 | X101: Protein folding
A102: Q42972 | B102: Malate dehydrogenase, glyoxysomal | D102: 1 | Q102: 1 | R102: 1 | X102: Carbohydrate Metabolism | Y102: Secondary Metabolite Metabolism
A103: Q2QYL3 | B103: Non-specific lipid-transfer protein 3 | C103: 1 | T103: 1 | V103: 1 | X103: Plant Defense | Y103: Transporter Protein
A104: Q7XPL2 | B104: Oxygen-dependent coproporphyrinogen-III oxidase, chloroplastic | C104: 1 | D104: 1 | L104: 1 | Q104: 1 | R104: 1 | X104: Secondary Metabolite Biosynthesis
A105: Q6ERW7 | B105: Probable cinnamyl alcohol dehydrogenase 8C | C105: 1 | D105: 1 | Q105: 1 | R105: 1 | X105: Secondary Metabolite Biosynthesis
A106: Q941Z0 | B106: Probable NADPH:quinone oxidoreductase 1 | C106: 1 | D106: 1 | J106: 1 | Q106: 1
A107: Q7FAY6 | B107: Probable UDP-arabinopyranose mutase 2 | D107: 1 | O107: 1 | Q107: 1 | R107: 1 | S107: 1 | X107: Amino Acid Metabolism
A108: P52428 | B108: Proteasome subunit alpha type-1 | D108: 1 | I108: 1 | K108: 1 | Q108: 1 | R108: 1 | X108: Protein folding
A109: Q10KF0 | B109: Proteasome subunit alpha type-2 | D109: 1 | I109: 1 | K109: 1 | Q109: 1 | R109: 1 | X109: Protein folding
A110: Q9LSU0 | B110: Proteasome subunit alpha type-3 | D110: 1 | I110: 1 | K110: 1 | Q110: 1 | R110: 1 | X110: Protein folding
A111: B8BJ39 | B111: Pyruvate kinase 1, cytosolic | C111: 1 | D111: 1 | J111: 1 | Q111: 1 | R111: 1 | X111: Amino Acid Biosynthesis | Y111: Glycolysis | Z111: Secondary Metabolite Biosynthesis
A112: Q6ZFT5 | B112: Ribose-phosphate pyrophosphokinase 4 | C112: 1 | D112: 1 | I112: 1 | J112: 1 | P112: 1 | Q112: 1 | R112: 1 | X112: Amino Acid Biosynthesis | Y112: Carbon Metabolism | Z112: Secondary Metabolite Biosynthesis
A113: Q6ZFU6 | B113: Thioredoxin reductase NTRB | D113: 1 | F113: 1 | Q113: 1 | R113: 1 | V113: 1 | X113: Amino Acid Biosynthesis
B114: Total | C114: =SUM(C98:C113) -> 8 | D114: =SUM(D97:D113) -> 15 | E114: =SUM(E98:E113) -> 0 | F114: =SUM(F98:F113) -> 2 | G114: =SUM(G98:G113) -> 0 | H114: =SUM(H98:H113) -> 0 | I114: =SUM(I98:I113) -> 5 | J114: =SUM(J98:J113) -> 3 | K114: =SUM(K98:K113) -> 3 | L114: =SUM(L98:L113) -> 1 | M114: =SUM(M98:M113) -> 0 | N114: =SUM(N98:N113) -> 1 | O114: =SUM(O98:O113) -> 1 | P114: =SUM(P98:P113) -> 1 | Q114: =SUM(Q97:Q113) -> 16 | R114: =SUM(R97:R113) -> 15 | S114: =SUM(S98:S113) -> 1 | T114: =SUM(T98:T113) -> 1 | U114: =SUM(U98:U113) -> 1 | V114: =SUM(V98:V113) -> 4 | W114: =SUM(W98:W113) -> 0
A117: Proteins exclusive to control
A118: Q6Z7V2 | B118: 24.1 kDa heat shock protein, mitochondrial | M118: 1 | V118: 1 | X118: Stress Response
A119: Q5N8G1 | B119: 2-C-methyl-D-erythritol 4-phosphate cytidylyltransferase, chloroplastic | D119: 1 | L119: 1 | Q119: 1 | R119: 1 | X119: Secondary Metabolite Biosynthesis
A120: P0C469 | B120: 30S ribosomal protein S15, chloroplastic | E120: 1 | L120: 1 | Q120: 1 | R120: 1 | X120: Translation
A121: Q9ZST1 | B121: 30S ribosomal protein S17, chloroplastic | C121: 1 | E121: 1 | L121: 1 | Q121: 1 | R121: 1 | X121: Translation
A122: P0C476 | B122: 30S ribosomal protein S18, chloroplastic | C122: 1 | E122: 1 | L122: 1 | Q122: 1 | R122: 1 | X122: Translation
A123: Q69UI2 | B123: 40S ribosomal protein S13-1 | C123: 1 | E123: 1 | J123: 1 | K123: 1 | Q123: 1 | R123: 1 | X123: Translation
A124: Q8S2G0 | B124: 4-diphosphocytidyl-2-C-methyl-D-erythritol kinase, chloroplastic | C124: 1 | D124: 1 | L124: 1 | Q124: 1 | R124: 1 | X124: Secondary Metabolite Biosynthesis | Y124: Transport
A125: P56724 | B125: 60S acidic ribosomal protein P3 | E125: 1 | Q125: 1 | R125: 1 | X125: Translation
A126: Q10AZ4 | B126: Actin-3 | C126: 1 | H126: 1 | I126: 1 | X126: Signalling and Cellular Process
A127: P0C540 | B127: Actin-7 | C127: 1 | H127: 1 | X127: Signalling and Cellular Process
A128: Q9LD61 | B128: Aspartate carbamoyltransferase, chloroplastic | C128: 1 | D128: 1 | L128: 1 | Q128: 1 | R128: 1 | V128: 1 | X128: Amino Acid Biosynthesis
A129: P0C314 | B129: ATP-dependent Clp protease proteolytic subunit | C129: 1 | D129: 1 | L129: 1 | Q129: 1 | R129: 1 | X129: Protease
A130: Q7XKV2 | B130: Beta-glucosidase 13 | D130: 1 | Q130: 1
A131: Q2QX45 | B131: Calcium-dependent protein kinase 28 | C131: 1 | D131: 1 | I131: 1 | K131: 1 | Q131: 1 | R131: 1 | V131: 1 | X131: Plant Pathogen Interaction
A132: Q0DJA0 | B132: Coatomer subunit delta-1 | O132: 1 | T132: 1 | X132: Transporter Protein
A133: Q8W4M7 | B133: DNA repair helicase XPD | C133: 1 | D133: 1 | K133: 1 | Q133: 1 | R133: 1 | S133: 1 | U133: 1 | V133: 1
A134: Q6ZDY8 | B134: Electron transfer flavoprotein subunit alpha, mitochondrial | C134: 1 | D134: 1 | M134: 1 | Q134: 1 | R134: 1 | X134: Transport
A135: Q6K471 | B135: Ferredoxin-thioredoxin reductase catalytic chain, chloroplastic | C135: 1 | D135: 1 | L135: 1 | Q135: 1 | R135: 1
A136: Q6I544 | B136: Germin-like protein 5-1 | C136: 1 | R136: 1 | T136: 1 | U136: 1
A137: Q0JKD0 | B137: Glutamate synthase 1 [NADH], chloroplastic | C137: 1 | D137: 1 | I137: 1 | L137: 1 | Q137: 1 | R137: 1 | U137: 1 | V137: 1 | W137: 1 | X137: Amino Acid Biosynthesis | Y137: Secondary Metabolites Biosynthesis
A138: Q0ITU1 | B138: Methylthioribose-1-phosphate isomerase | D138: 1 | I138: 1 | K138: 1 | Q138: 1 | R138: 1 | X138: Amino Acid Biosynthesis
A139: Q6Z2X3 | B139: Molybdopterin synthase catalytic subunit | D139: 1 | I139: 1 | Q139: 1 | R139: 1
A140: Q6Z1J6 | B140: Obg-like ATPase 1 | C140: 1 | D140: 1 | I140: 1 | J140: 1 | P140: 1 | T140: 1 | U140: 1
A141: Q7XUP7 | B141: Peptide methionine sulfoxide reductase A2-1 | D141: 1 | J141: 1 | Q141: 1 | R141: 1 | V141: 1
A142: Q84VG0 | B142: Probable calcium-binding protein CML7 | C142: 1 | X142: Plant Pathogen Interaction
A143: Q10MJ1 | B143: Probable glutamyl endopeptidase, chloroplastic | D143: 1 | L143: 1 | Q143: 1
A144: Q6ZL42 | B144: Probable histone H2A.2 | C144: 1 | I144: 1 | K144: 1 | R144: 1 | S144: 1
A145: P49030 | B145: Protein mago nashi homolog 2 | C145: 1 | I145: 1 | K145: 1 | Q145: 1 | R145: 1 | T145: 1 | U145: 1 | X145: Translational Modification
A146: Q69TH8 | B146: Putative 12-oxophytodienoate reductase 11 | C146: 1 | D146: 1 | Q146: 1 | R146: 1 | U146: 1
A147: P37890 | B147: Serine carboxypeptidase 1 | D147: 1 | Q147: 1 | R147: 1
A148: Q7XKA8 | B148: Serine/threonine-protein kinase SAPK5 | C148: 1 | D148: 1 | I148: 1 | K148: 1 | Q148: 1 | R148: 1 | V148: 1 | W148: 1 | X148: Signalling and Cellular Process
A149: P55857 | B149: Small ubiquitin-related modifier 1 | I149: 1 | K149: 1 | Q149: 1 | R149: 1 | X149: Signalling and Cellular Process | Y149: Translational Modification
A150: Q7X8R5 | B150: Thioredoxin M2, chloroplastic | D150: 1 | F150: 1 | I150: 1 | L150: 1 | Q150: 1 | R150: 1 | U150: 1 | V150: 1 | X150: Transporter Protein | Y150: Translational Modification
A151: Q7XKD0 | B151: Thioredoxin X, chloroplastic | D151: 1 | L151: 1 | Q151: 1 | U151: 1
A152: Q0J9V5 | B152: Thioredoxin-like protein CXXS1 | D152: 1 | J152: 1 | R152: 1 | U152: 1 | X152: Translational Modification
A153: Q7F8T6 | B153: Tricin synthase 2 | C153: 1 | D153: 1 | Q153: 1
A154: Q6H468 | B154: Two-component response regulator ORR11 | R154: 1 | U154: 1 | V154: 1 | W154: 1 | X154: Signalling and Cellular Process
A155: Q6ETX3 | B155: U2 small nuclear ribonucleoprotein B | C155: 1 | K155: 1 | Q155: 1 | R155: 1 | S155: 1 | X155: Translational Modification
A156: Q9ARZ9 | B156: Ubiquitin-40S ribosomal protein S27a-1 | C156: 1 | E156: 1 | K156: 1 | Q156: 1 | R156: 1 | X156: Translational Modification
A157: Q6Z4G3 | B157: UDP-arabinopyranose mutase 3 | D157: 1 | J157: 1 | O157: 1 | Q157: 1 | R157: 1 | S157: 1 | X157: Nucleotide Metabolism
A158: Q0J716 | B158: Villin-5 | C158: 1 | H158: 1 | Q158: 1 | R158: 1 | S158: 1
B159: Total | C159: =SUM(C143:C158) -> 8 | D159: =SUM(D143:D158) -> 9 | E159: =SUM(E143:E158) -> 1 | F159: =SUM(F143:F158) -> 1 | G159: =SUM(G143:G158) -> 0 | H159: =SUM(H143:H158) -> 1 | I159: =SUM(I143:I158) -> 5 | J159: =SUM(J143:J158) -> 2 | K159: =SUM(K143:K158) -> 6 | L159: =SUM(L143:L158) -> 3 | M159: =SUM(M143:M158) -> 0 | N159: =SUM(N143:N158) -> 0 | O159: =SUM(O143:O158) -> 1 | P159: =SUM(P143:P158) -> 0 | Q159: =SUM(Q143:Q158) -> 13 | R159: =SUM(R143:R158) -> 13 | S159: =SUM(S143:S158) -> 4 | T159: =SUM(T143:T158) -> 1 | U159: =SUM(U143:U158) -> 6 | V159: =SUM(V143:V158) -> 3 | W159: =SUM(W143:W158) -> 2
B160: Total Downregulated Proteins | C160: =SUM(C114,C159) -> 16 | D160: =SUM(D114,D159) -> 24 | E160: 1 | F160: 3 | G160: 0 | H160: 1 | I160: 10 | J160: 5 | K160: 9 | L160: 4 | M160: 0 | N160: 1 | O160: 2 | P160: 1 | Q160: 29 | R160: 28 | S160: 5 | T160: 2 | U160: 7 | V160: 7 | W160: 2
B161: Total Function | C161: =SUM(C162:W162) -> 492 | D161: =SUM(C162:G162) -> 148 | H161: =SUM(H162:P162) -> 104 | Q161: =SUM(Q162:W162) -> 240
B162: Grand Total | C162: =SUM(C83,C160) -> 67 | D162: =SUM(D83,D160) -> 60 | E162: 10 | F162: 3 | G162: 8 | H162: 4 | I162: 24 | J162: 6 | K162: 15 | L162: 32 | M162: 9 | N162: 3 | O162: 5 | P162: 6 | Q162: 78 | R162: 83 | S162: 17 | T162: 17 | U162: 19 | V162: 20 | W162: 6
B163: Percentage | C163: =(C162/C161)*100 -> 13.61788618 | D163: =(D162/C161)*100 -> 12.19512195 | E163: =(E162/C161)*100 -> 2.032520325 | F163: =(F162/C161)*100 -> 0.6097560976 | G163: =(G162/C161)*100 -> 1.62601626 | H163: =(H162/C161)*100 -> 0.8130081301 | I163: =(I162/C161)*100 -> 4.87804878 | J163: =(J162/C161)*100 -> 1.219512195 | K163: =(K162/C161)*100 -> 3.048780488 | L163: =(L162/C161)*100 -> 6.504065041 | M163: =(M162/C161)*100 -> 1.829268293 | N163: =(N162/C161)*100 -> 0.6097560976 | O163: =(O162/C161)*100 -> 1.016260163 | P163: =(P162/C161)*100 -> 1.219512195 | Q163: =(Q162/C161)*100 -> 15.85365854 | R163: =(R162/C161)*100 -> 16.8699187 | S163: =(S162/C161)*100 -> 3.455284553 | T163: =(T162/C161)*100 -> 3.455284553 | U163: =(U162/C161)*100 -> 3.861788618 | V163: =(V162/C161)*100 -> 4.06504065 | W163: =(W162/C161)*100 -> 1.219512195
C164: =(C162/D161)*100 -> 45.27027027 | D164: =(D162/D161)*100 -> 40.54054054 | E164: =(E162/D161)*100 -> 6.756756757 | F164: =(F162/D161)*100 -> 2.027027027 | G164: =(G162/D161)*100 -> 5.405405405 | H164: =(H162/H161)*100 -> 3.846153846 | I164: =(I162/H161)*100 -> 23.07692308 | J164: =(J162/H161)*100 -> 5.769230769 | K164: =(K162/H161)*100 -> 14.42307692 | L164: =(L162/H161)*100 -> 30.76923077 | M164: =(M162/H161)*100 -> 8.653846154 | N164: =(N162/H161)*100 -> 2.884615385 | O164: =(O162/H161)*100 -> 4.807692308 | P164: =(P162/H161)*100 -> 5.769230769 | Q164: =(Q162/Q161)*100 -> 32.5 | R164: =(R162/Q161)*100 -> 34.58333333 | S164: =(S162/Q161)*100 -> 7.083333333 | T164: =(T162/Q161)*100 -> 7.083333333 | U164: =(U162/Q161)*100 -> 7.916666667 | V164: =(V162/Q161)*100 -> 8.333333333 | W164: =(W162/Q161)*100 -> 2.5

Sheet Gene Ontology Analysis 2
B1: Binding | C1: Catalytic Activity | D1: Structural Molecule Activity | E1: Antioxidant Activity | F1: Transporter Activity | G1: Cytoskeleton | H1: Cytoplasm | I1: Cytosol | J1: Nucleus | K1: Chloroplast | L1: Mitochondrion | M1: Endoplasmic Reticulum | N1: Golgi Apparatus | O1: Plasma Membrane | P1: Metabolic Process | Q1: Cellular Process | R1: Cellular Component Organisation | S1: Localisation | T1: Biological Regulation | U1: Response to Stimulus | V1: Signalling
A2: Upregulated proteins | B2: 51 | C2: 36 | D2: 9 | E2: 0 | F2: 8 | G2: 3 | H2: 14 | I2: 1 | J2: 6 | K2: 28 | L2: 9 | M2: 2 | N2: 3 | O2: 5 | P2: 49 | Q2: 55 | R2: 12 | S2: 15 | T2: 12 | U2: 13 | V2: 4
A3: Downregulated proteins | B3: 16 | C3: 24 | D3: 1 | E3: 3 | F3: 0 | G3: 1 | H3: 10 | I3: 5 | J3: 9 | K3: 4 | L3: 0 | M3: 1 | N3: 2 | O3: 1 | P3: 29 | Q3: 28 | R3: 5 | S3: 2 | T3: 7 | U3: 7 | V3: 2
A4: Total | B4: 67 | C4: 60 | D4: 10 | E4: 3 | F4: 8 | G4: 4 | H4: 24 | I4: 6 | J4: 15 | K4: 32 | L4: 9 | M4: 3 | N4: 5 | O4: 6 | P4: 78 | Q4: 83 | R4: 17 | S4: 17 | T4: 19 | U4: 20 | V4: 6
A43: Biological process | B43: Metabolic Process | C43: Cellular Process | D43: Cellular Component Organisation | E43: Localisation | F43: Biological Regulation | G43: Response to Stimulus | H43: Signalling
A44: Percentages | B44: 32.5 | C44: 34.58333333 | D44: 7.083333333 | E44: 7.083333333 | F44: 7.916666667 | G44: 8.333333333 | H44: 2.5
A68: Cellular components | B68: Cytoskeleton | C68: Cytoplasm | D68: Cytosol | E68: Nucleus | F68: Chloroplast | G68: Mitochondrion | H68: Endoplasmic Reticulum | I68: Golgi Apparatus | J68: Plasma Membrane
A69: Percentages | B69: 3.846153846 | C69: 23.07692308 | D69: 5.769230769 | E69: 14.42307692 | F69: 30.76923077 | G69: 8.653846154 | H69: 2.884615385 | I69: 4.807692308 | J69: 5.769230769
A94: Molecular functions | B94: Binding | C94: Catalytic Activity | D94: Structural Molecule Activity | E94: Antioxidant Activity | F94: Transporter Activity
A95: Percentages | B95: 45.27027027 | C95: 40.54054054 | D95: 6.756756757 | E95: 2.027027027 | F95: 5.405405405

Sheet KEGG Pathway Analysis
A1: KEGG Pathway Analysis | D1: Pathway | E1: Upregulated Proteins | F1: Downregulated Proteins | G1: Total Protein
D2: Amino Acid Biosynthesis | E2: 5 | F2: 5 | G2: =SUM(E2:F2) -> 10
A3: Upregulated Proteins | B3: Downregulated Proteins | D3: Carbohydrate Metabolism | E3: 7 | F3: 4 | G3: =SUM(E3:F3) -> 11
A4: Amino Acid Biosynthesis | B4: Amino Acid Biosynthesis | D4: Glycolysis / Gluconeogenesis | E4: 1 | F4: 1 | G4: 2
A5: Amino Acid Metabolism | B5: Amino Acid Biosynthesis | D5: Lipid Metabolism | E5: 1 | F5: 0 | G5: 1
A6: Amino Acid Metabolism | B6: Amino Acid Biosynthesis | D6: Nitrogen Metabolism | E6: 0 | F6: 1 | G6: 1
A7: Amino Acid Metabolism | B7: Amino Acid Biosynthesis | D7: Nucleotide Metabolism | E7: 0 | F7: 1 | G7: 1
A8: Amino Acid Metabolism | B8: Amino Acid Biosynthesis | D8: Photosynthesis | E8: 12 | F8: 0 | G8: 12
A9: Carbohydrate Metabolism | B9: Amino Acid Biosynthesis | D9: Plant Defense | E9: 1 | F9: 1 | G9: 2
A10: Carbohydrate Metabolism | B10: Amino Acid Biosynthesis | D10: Plant Pathogen Interaction | E10: 0 | F10: 2 | G10: 2
A11: Carbohydrate Metabolism | B11: Amino Acid Metabolism | D11: Protein Biosynthesis | E11: 5 | F11: 1 | G11: 6
A12: Carbohydrate Metabolism | B12: Carbohydrate Metabolism | D12: Secondary Metabolites Biosynthesis | E12: 2 | F12: 4 | G12: 6
A13: Carbohydrate Metabolism | B13: Carbohydrate Metabolism | D13: Stress Response | E13: 3 | F13: 1 | G13: =SUM(E13:F13) -> 4
A14: Carbohydrate Metabolism | B14: Carbohydrate Metabolism
A15: Carbon Metabolism | B15: Carbon Metabolism
A16: Cell Wall Biogenesis/Degradation | B16: Glycolysis
A17: Energy Metabolism | B17: Glycolysis
A18: Energy Metabolism | B18: Nitrogen Metabolism
A19: Energy Metabolism | B19: Nucleotide Metabolism
A20: Glycolysis | B20: Plant Defense
A21: Lipid Metabolism | B21: Plant Pathogen Interaction
A22: Photosynthesis | B22: Plant Pathogen Interaction
A23: Photosynthesis | B23: Protease
A24: Photosynthesis | B24: Protein Biosynthesis
A25: Photosynthesis | B25: Protein folding
A26: Photosynthesis | B26: Protein folding
A27: Photosynthesis | B27: Protein folding
A28: Photosynthesis | B28: Protein folding
A29: Photosynthesis | B29: Secondary metabolite biosynthesis
A30: Photosynthesis | B30: Secondary Metabolite Biosynthesis
A31: Photosynthesis | B31: Secondary Metabolite Biosynthesis
A32: Photosynthesis | B32: Secondary Metabolite Biosynthesis
A33: Photosynthesis | B33: Secondary Metabolite Biosynthesis
A34: Plant Defense | B34: Secondary Metabolite Biosynthesis
A35: Protein Biosynthesis | B35: Secondary Metabolite Biosynthesis
A36: Protein Biosynthesis | B36: Secondary Metabolite Biosynthesis
A37: Protein Biosynthesis | B37: Secondary Metabolite Biosynthesis
A38: Protein Biosynthesis | B38: Secondary Metabolite Metabolism
A39: Protein Degradation | B39: Secondary Metabolites Biosynthesis
A40: Secondary Metabolite Biosynthesis | B40: Signalling and Cellular Process
A41: Secondary Metabolite Biosynthesis | B41: Signalling and Cellular Process
A42: Signalling and Cellular Process | B42: Signalling and Cellular Process
A43: Signalling and Cellular Process | B43: Signalling and Cellular Process
A44: Signalling and Cellular Process | B44: Signalling and Cellular Process
A45: Signalling and Cellular Processes | B45: Signalling and Cellular Process
A46: Signalling and Cellular Processes | B46: Stress Response
A47: Signalling and Cellular Processes | B47: Translation | D47: ori
A48: Signalling and Cellular Processes | B48: Translation | D48: Pathway | E48: Upregulated Proteins | F48: Downregulated Proteins | G48: Total Protein
A49: Starch Biosynthesis | B49: Translation | D49: Amino Acid Biosynthesis | E49: 5 | F49: 8 | G49: =SUM(E49:F49) -> 13
A50: Stress Response | B50: Translation | D50: Carbohydrate Metabolism | E50: 7 | F50: 4 | G50: =SUM(E50:F50) -> 11
A51: Stress Response | B51: Translation | D51: Glycolysis / Gluconeogenesis | E51: 1 | F51: 2 | G51: 3
A52: Stress Response | B52: Translational Modification | D52: Lipid Metabolism | E52: 1 | F52: 0 | G52: 1
A53: Translation | B53: Translational Modification | D53: Nitrogen Metabolism | E53: 0 | F53: 1 | G53: 1
A54: Translation | B54: Translational Modification | D54: Nucleotide Metabolism | E54: 0 | F54: 1 | G54: 1
A55: Translation | B55: Translational Modification | D55: Photosynthesis | E55: 12 | F55: 0 | G55: 12
A56: Translational Modification | B56: Translational Modification | D56: Plant Defense | E56: 1 | F56: 1 | G56: 2
A57: Translational Modification | B57: Translational Modification | D57: Plant Pathogen Interaction | E57: 0 | F57: 2 | G57: 2
A58: Translational Modification | B58: Translational Modification | D58: Protein Biosynthesis | E58: 5 | F58: 1 | G58: 6
A59: Translational Modification | B59: Translational Modification | D59: Secondary Metabolites Biosynthesis | E59: 2 | F59: 11 | G59: 13
A60: Translational Modification | B60: Translational Modification | D60: Signalling and Cellular Process | E60: 7 | F60: 6 | G60: 13
A61: Translational Modification | B61: Transport | D61: Stress Response | E61: 3 | F61: 1 | G61: 4
A62: Translational Modification | B62: Transporter Protein | D62: Translational Modification | E62: 10 | F62: 14 | G62: 24
A63: Transport | B63: Transporter Protein | D63: Transporter Protein | E63: 21 | F63: 4 | G63: 25
A64: Transport | B64: Transporter Protein
A65: Transport
A66: Transport
A67: Transport
A68: Transport
A69: Transport
A70: Transport
A71: Transport
A72: Transport
A73: Transport
A74: Transport
A75: Transport
A76: Transport
A77: Transport
A78: Transport
A79: Transport
A80: Transport
A81: Transport
A82: Transport
A83: Transport
